Cogmind - Beta 12 @@@ ROGUE MODE // 2023.03.10 @ 11:15:44 Player: Amy! Result: Destroyed by S-10 Pest with Light Assault Rifle Performance ------------- Evolutions (0) 0 Regions Visited (4) 800 Robots Destroyed (10) 50 Value Destroyed (342) 342 Prototype IDs (0) 0 Alien Tech Used (0) 0 Bonus (300) 300 TOTAL SCORE: 1492 Bonus ------- Aligned with FarCom 300 Cogmind --------- Core Integrity 0/250 Matter 280/300 Energy 170/170 System Corruption 0% Temperature Cool (28) Movement Walking (120) Location -9/Mines Parts ------- > --- POWER (1) -------- Makeshift Power Source > --- PROPULSION (2) --- Aluminum Leg Aluminum Leg > --- UTILITY (2) ------ Small Storage Unit Structural Scanner > --- WEAPON (2) ------- Makeshift Shrapnel Gun Assault Cannon > --- INVENTORY (8) ---- Light Treads Flying Fortress v7 Sensor Array Seismic Detector EM Pulse Gun Peak State ------------ > --- POWER ------------ Makeshift Power Source > --- PROPULSION ------- Aluminum Leg Aluminum Leg > --- UTILITY ---------- Small Storage Unit Structural Scanner > --- WEAPON ----------- Makeshift Shrapnel Gun Assault Cannon > --- INVENTORY -------- Light Treads Flying Fortress v7 Sensor Array Seismic Detector EM Pulse Gun [Rating: 18] Favorites ----------- Power Ion Engine Engine Ion Engine Propulsion Aluminum Leg Leg Aluminum Leg Wheel Compact Wheel Utility Small Storage Unit Device Structural Scanner Storage Small Storage Unit Weapon Assault Cannon Energy Gun Small Laser Ballistic Gun Light Assault Rifle Ballistic Cannon Assault Cannon Build | -11 -10 -10 -10 -9 ------- Run | Jun Mat Min Exi Min Slots Evolved . | . . . . . Power . | . . . . . Propulsion . | . . . . . Utility . | . . . . . Weapon . | . . . . . Parts Attached 19 | 6 7 2 2 2 Power 4 | 1 1 . 1 1 Engine 4 | 1 1 . 1 1 Core . | . . . . . Reactor . | . . . . . Propulsion 6 | 2 3 . 1 . Treads . | . . . . . Leg 3 | . 2 . 1 . Wheel 3 | 2 1 . . . Hover . | . . . . . Flight . | . . . . . Utility 2 | 1 1 . . . Device 1 | . 1 . . . Storage 1 | 1 . . . . Processor . | . . . . . Hackware . | . . . . . Protection . | . . . . . Artifact . | . . . . . Weapon 7 | 2 2 2 . 1 Energy Gun 3 | . 2 1 . . Energy Cannon . | . . . . . Ballistic Gun 3 | 2 . . . 1 Ballistic Cannon 1 | . . 1 . . Launcher . | . . . . . Special Weapon . | . . . . . Impact Weapon . | . . . . . Slashing Weapon . | . . . . . Piercing Weapon . | . . . . . Special Melee Weapon . | . . . . . Unidentified Prototypes . | . . . . . Parts Lost 4 | . 3 1 . . Power 1 | . 1 . . . Propulsion 1 | . 1 . . . Utility . | . . . . . Weapon 2 | . 1 1 . . Highest Loss Streak 2 | . 2 1 . . To Critical Strikes . | . . . . . Average Slot Usage (%) 98 | . 95 100 100 100 Engine 14 | . 14 14 14 14 Leg 21 | . 3 28 28 28 Wheel 5 | . 22 . . . Device 13 | . 12 14 14 14 Storage 14 | . 14 14 14 14 Energy Gun 12 | . 12 22 14 3 Ballistic Gun 6 | . 14 . . 10 Ballistic Cannon 9 | . . 5 14 14 Naked Turns . | . . . . . Heaviest Build 17 | 13 15 17 17 17 Greatest Support 32 | 32 32 20 20 20 Greatest Overweight (x) . | . . . . . Average Overweight (x) . | . . . . . Largest Inventory Capacity 8 | 8 8 8 8 8 Average Capacity 7 | 7 8 8 8 8 Most Carried 8 | 6 8 8 8 8 Average Carried 7 | 2 7 7 7 8 Final Capacity 8 | 8 8 8 8 8 Final Carried 8 | 6 8 7 8 8 Class Distribution -------------------- 100% | Mutant Dominant Class ---------------- Mutant | -10/Materials Mutant | -10/Mines Mutant | -10/Exiles Mutant | -9/Mines Resources | -11 -10 -10 -10 -9 ----------- Run | Jun Mat Min Exi Min Matter Collected 472 | 221 171 . . 80 Remotely . | . . . . . Salvage Created 302 | . 219 . . 83 Parts 16 | . 11 . . 5 Haulers Intercepted . | . . . . . Recyclers Shooed . | . . . . . Parts Field Recycled . | . . . . . Retrieved Matter . | . . . . . Parts Self-Destructed . | . . . . . Prevented . | . . . . . Kills | -11 -10 -10 -10 -9 ------- Run | Jun Mat Min Exi Min Combat Hostiles Destroyed 9 | . 6 . . 3 Guns 7 | . 5 . . 2 Cannons 1 | . . . . 1 AOE 1 | . 1 . . . Classes Destroyed 3 | . 2 . . 1 Worker 1 | . 1 . . . Swarmer 1 | . . . . 1 Grunt 8 | . 6 . . 2 Best Kill Streak 4 | . 4 . . 2 Combat Bots Only 3 | . 3 . . 2 Max Kills in Single Turn 2 | . 2 . . 1 Gunslinging . | . . . . . Exploded 1 | . 1 . . . Melee . | . . . . . Uniques/NPCs Destroyed . | . . . . . Combat | -11 -10 -10 -10 -9 -------- Run | Jun Mat Min Exi Min Damage Taken 907 | . 592 177 . 138 Core 250 | . 176 36 . 38 Absorbed by Shields . | . . . . . Core Remaining (%) 100 | 100 . . . . Volleys Fired 34 | . 24 3 . 7 Largest 2 | . 2 2 . 2 Hottest 105 | . 85 105 . 84 Shots Fired 66 | . 48 4 . 14 Gun 59 | . 48 4 . 7 Cannon 7 | . . . . 7 Launcher . | . . . . . Special . | . . . . . Kinetic 33 | . 24 . . 9 Thermal 27 | . 18 4 . 5 Explosive . | . . . . . Electromagnetic 6 | . 6 . . . Robot Hit Streak 7 | . 7 2 . 6 Robot Miss Streak 4 | . 2 2 . 4 Penetration Max . | . . . . . Secondary Targets . | . . . . . Shots Hit Robots 37 | . 26 2 . 9 Core Hits 19 | . 13 1 . 5 Critical Kills . | . . . . . Critical Parts Destroyed . | . . . . . Critical Strikes 2 | . 2 . . . Burn 1 | . 1 . . . Corrupt 1 | . 1 . . . Melee Attacks . | . . . . . Impact . | . . . . . Slashing . | . . . . . Piercing . | . . . . . Sneak Attacks . | . . . . . Combat Hostiles . | . . . . . Follow-up Attacks . | . . . . . Damage Inflicted 729 | . 572 22 . 135 Guns 359 | . 291 22 . 46 Cannons 89 | . . . . 89 Explosions 281 | . 281 . . . Melee . | . . . . . Ramming . | . . . . . Kinetic 217 | . 115 . . 102 Thermal 173 | . 118 22 . 33 Explosive 281 | . 281 . . . Electromagnetic 58 | . 58 . . . Impact . | . . . . . Slashing . | . . . . . Piercing . | . . . . . Highest Corruption . | . . . . . Average Corruption . | . . . . . Corruption Purged . | . . . . . Corruption Blocked . | . . . . . Overload Shots . | . . . . . Overflow Damage 25 | . 25 . . . Projectiles . | . . . . . Explosions 25 | . 25 . . . Melee . | . . . . . Knockbacks 1 | . . . . 1 Impact . | . . . . . Kinetic 1 | . . . . 1 Secondary . | . . . . . Self-Inflicted Damage . | . . . . . Shots . | . . . . . Rammed . | . . . . . Targets Rammed . | . . . . . Kicked . | . . . . . Crushed . | . . . . . Highest Temperature 336 | . 336 99 . 147 Average Temperature 105 | . 120 59 . 67 Received Heat Transfer 504 | . 381 96 . 27 Effects 1 | . 1 . . . Matter Decay 1 | . 1 . . . Siege Activations . | . . . . . Robots Corrupted . | . . . . . Combat Hostiles . | . . . . . Parts Fried . | . . . . . Impact Corruptions . | . . . . . Robots Melted . | . . . . . Combat Hostiles . | . . . . . Parts Melted 1 | . 1 . . . Heat Transferred 495 | . 370 50 . 75 Parts Sabotaged . | . . . . . Parts Stolen . | . . . . . Parts Stripped . | . . . . . Power Chain Reactions . | . . . . . Missiles Intercepted . | . . . . . Alert | -11 -10 -10 -10 -9 ------- Run | Jun Mat Min Exi Min Peak Influence 339 | . 339 192 . 72 Initial 127 | . . 127 . . Average 98 | . 139 141 . 41 Maximum Alert Level 1 | . 1 . . . Low Security (%) 93 | 100 83 100 . 100 Level 1 6 | . 16 . . . Level 2 . | . . . . . Level 3 . | . . . . . Level 4 . | . . . . . Level 5 . | . . . . . High Security . | . . . . . Max Security . | . . . . . Squads Dispatched 3 | . 2 1 . . Investigation 2 | . 1 1 . . Extermination . | . . . . . Reinforcement 1 | . 1 . . . Assault . | . . . . . Garrison . | . . . . . Intercept . | . . . . . Searches Triggered . | . . . . . Construction Impeded . | . . . . . Haulers Reinforced . | . . . . . Active Scanning Responses . | . . . . . Cargo Convoy Interrupts . | . . . . . Stealth | -11 -10 -10 -10 -9 --------- Run | Jun Mat Min Exi Min Distress Signals 1 | . 1 . . . Communications Jammed . | . . . . . Distress Signals . | . . . . . Times Spotted 26 | . 15 5 . 6 Peak Tracking Total 4 | . 4 3 . 4 Tactical Retreats 4 | . 2 2 . . Traps | -11 -10 -10 -10 -9 ------- Run | Jun Mat Min Exi Min Traps Triggered 1 | . 1 . . . Indirectly . | . . . . . Trap Hack Attempts . | . . . . . Triggered . | . . . . . Disarmed . | . . . . . Reprogrammed . | . . . . . Reused . | . . . . . Traps Extracted . | . . . . . Installed . | . . . . . Triggered . | . . . . . Exploded 1 | . . . 1 . Machines | -11 -10 -10 -10 -9 ---------- Run | Jun Mat Min Exi Min Machines Disabled 2 | . 2 . . . Max in Single Turn 2 | . 2 . . . Machines Repaired . | . . . . . Machines Sabotaged . | . . . . . Overloaded Fab Kills . | . . . . . Hacking | -11 -10 -10 -10 -9 --------- Run | Jun Mat Min Exi Min Machines Accessed 8 | . 3 1 4 . Terminals 3 | . 3 . . . Fabricators . | . . . . . Repair Stations . | . . . . . Recycling Units . | . . . . . Scanalyzers . | . . . . . Garrison Access . | . . . . . Total Hacks 40 | . 9 1 30 . Successful 39 | . 8 1 30 . Failed 1 | . 1 . . . Catastrophic 1 | . 1 . . . Database Lockouts . | . . . . . Manual 4 | . 3 . 1 . Terminals 9 | . 9 . . . Fabricators . | . . . . . Repair Stations . | . . . . . Recycling Units . | . . . . . Scanalyzers . | . . . . . Garrison Access . | . . . . . Terminal Hacks 39 | . 8 1 30 . Record 30 | . . . 30 . Part Schematic 1 | . 1 . . . Open Door 1 | . . 1 . . Branch Access Points 1 | . 1 . . . Alert Level 2 | . 2 . . . Locate Traps 1 | . 1 . . . Recall Reinforcements 1 | . 1 . . . Hauler Manifests 1 | . 1 . . . Zone Layout 1 | . 1 . . . Fabricator Hacks . | . . . . . Repair Station Hacks . | . . . . . Recycling Unit Hacks . | . . . . . Scanalyzer . | . . . . . Garrison Access Hacks . | . . . . . Unauthorized Hacks . | . . . . . Terminals . | . . . . . Fabricators . | . . . . . Repair Stations . | . . . . . Recycling Units . | . . . . . Scanalyzers . | . . . . . Garrison Access . | . . . . . Data Cores Recovered . | . . . . . Used . | . . . . . Hacking Detections 2 | . 2 . . . Full Trace Events 1 | . 1 . . . Feedback Events . | . . . . . Feedback Blocked . | . . . . . Robot Schematics Acquired . | . . . . . Robots Built . | . . . . . Authchips . | . . . . . Time . | . . . . . Total Robot Build Rating . | . . . . . Part Schematics Acquired 1 | . 1 . . . Parts Built . | . . . . . Authchips . | . . . . . Time . | . . . . . Total Part Build Rating . | . . . . . Parts Repaired . | . . . . . Time . | . . . . . Parts Recycled . | . . . . . Recycled Matter . | . . . . . Retrieved Matter . | . . . . . Retrieved Components . | . . . . . Parts Scanalyzed . | . . . . . Part Schematics Acquired . | . . . . . Parts Damaged . | . . . . . Bothacking | -11 -10 -10 -10 -9 ------------ Run | Jun Mat Min Exi Min Used RIF Installer . | . . . . . Robots Hacked . | . . . . . Non-combat . | . . . . . Combat . | . . . . . Robot Hacks Applied . | . . . . . Relay Couplers Released . | . . . . . Fabnet Peak Effective % . | . . . . . Robots Rewired . | . . . . . Allies Hacked . | . . . . . Hacks Repelled . | . . . . . Allies | -11 -10 -10 -10 -9 -------- Run | Jun Mat Min Exi Min Total Allies . | . . . . . Largest Group . | . . . . . Highest-Rated Group . | . . . . . Highest-Rated Ally . | . . . . . Total Orders . | . . . . . Ally Attacks . | . . . . . Total Damage . | . . . . . Kills . | . . . . . Allies Corrupted . | . . . . . Allies Melted . | . . . . . Intel | -11 -10 -10 -10 -9 ------- Run | Jun Mat Min Exi Min Robot Analysis Total . | . . . . . Derelict Logs Recovered . | . . . . . Drone Launches . | . . . . . Drone Recoveries . | . . . . . Exploration | -11 -10 -10 -10 -9 ------------- Run | Jun Mat Min Exi Min Turns Passed 1621 | 60 395 224 588 354 Spaces Moved 1038 | 46 255 179 486 72 Core 2 | 2 . . . . Treads . | . . . . . Legs 775 | . 38 179 486 72 Wheels 261 | 44 217 . . . Hover . | . . . . . Flight . | . . . . . Fastest Speed 50 | 50 100 120 120 120 Average Speed 114 | 97 102 120 120 120 Slowest Speed 120 | 100 120 120 120 120 Overloaded Moves . | . . . . . Propulsion Burnouts . | . . . . . Robots Hopped . | . . . . . Cave-ins Triggered . | . . . . . Exploration Rate (%) 36 | 3 42 36 92 9 Regions Visited 4 Branch Regions 3 Pre-discovered Areas 1 | . . . 1 . Known Exits Taken 1 | . 1 . . . Unknown Exits Taken 3 | 1 . 1 1 . Scrap Searched . | . . . . . Spaces Dug . | . . . . . Terrain Destroyed 46 | . 44 . . 2 Melee . | . . . . . Projectile 2 | . . . . 2 AOE 44 | . 44 . . . Terrain Rammed . | . . . . . Walls Destroyed . | . . . . . Machines Disabled . | . . . . . Actions | -11 -10 -10 -10 -9 --------- Run | Jun Mat Min Exi Min Total 1403 | 57 343 184 491 328 Wait 293 | . 48 . . 245 Move 1034 | 45 254 178 485 72 Hop . | . . . . . Pick Up 15 | 6 7 1 1 . Fast Attach 10 | 6 3 . . 1 Attach 4 | . 2 2 . . Detach . | . . . . . Swap 5 | . 2 . 2 1 Drop 8 | . 3 . 3 2 Fire 34 | . 24 3 . 7 Melee . | . . . . . Ram . | . . . . . Kick . | . . . . . Crush . | . . . . . Escape Stasis . | . . . . . Rewire . | . . . . . Trap . | . . . . . Miscellaneous . | . . . . . Route ------- -11/Junkyard -10/Materials (discovered 2 exits: *Min x2) -10/Mines -10/Exiles (discovered 2 exits: [*Min x2]) -9/Mines History --------- Turn | Location | Event 11 | -11/Junkyard | Discovered new exit (range 16) 61 | -11/Junkyard | Entered Materials 179 | -10/Materials | Identified exit to Mines 338 | -10/Materials | Build established: Mutant 377 | -10/Materials | Core integrity fell below 50% 456 | -10/Materials | Entered Mines 490 | -10/Mines | Met a Derelict shopkeep closing up shop 637 | -10/Mines | Core integrity fell below 20% 675 | -10/Mines | Deemed a non-threat by the Exiles lab entrance 675 | -10/Mines | Discovered new exit (range 5) 680 | -10/Mines | Entered Exiles 709 | -10/Exiles | Met 8R-AWN 745 | -10/Exiles | Discovered new exit (range 14) 780 | -10/Exiles | Met EX-HEX 841 | -10/Exiles | Met EX-DEC 863 | -10/Exiles | Visited The Gauntlet 1025 | -10/Exiles | Learned location of Zion (-6) 1061 | -10/Exiles | Met EX-BIN 1081 | -10/Exiles | Aligned with FarCom system 1082 | -10/Exiles | Given EX-Vault access code 1132 | -10/Exiles | Opened EX-Vault 1155 | -10/Exiles | Found Prototype Flight Unit 1183 | -10/Exiles | Warned to stay clear of 0b10 Research branches 1186 | -10/Exiles | Exiles lab attacked by MAIN.C 1258 | -10/Exiles | Discovered new exit (range 10) 1268 | -10/Exiles | Left Exiles lab with Flying Fortress v7 1268 | -10/Exiles | Entered Mines 1622 | -9/Mines | Destroyed by S-10 Pest with Light Assault Rifle Last Messages --------------- 01339_ Acquired 28 matter. 01339_ R-06 Scavenger collects Sml. Laser. 01342_ K-01 Serf collects debris. 01343_ Dropped Ion Engine. 01343_ R-06 Scavenger collects Aluminum Leg. 01345_ K-01 Serf collects debris. 01346_ R-06 Scavenger collects Ion Engine. 01347_ Dropped Sml. Laser. 01347_ Acquired Mak. Shrapnel Gun. 01349_ K-01 Serf collects debris. 01354_ Acquired 48 matter. 01355_ Acquired 3 matter. 01355_ K-01 Serf collects debris. 01355_ R-06 Scavenger collects Sml. Laser. 01356_ Acquired 1 matter. 01358_ R-06 Scavenger collects Ion Engine. 01359_ K-01 Serf collects debris. 01362_ R-06 Scavenger collects Mak. Leg. 01363_ K-01 Serf collects debris. 01621_ S-10 Pest destroyed. Map ----- +----------------------------------------------------+ | | | | | ???????????????????????????????? | | ???????????????????????????????? | | ???????????????????????????????? | | ???????????????????????????????? | | ???????????????????????????????? | | ???????????????????????????????? | | ???????????????????????????????? | | ????? ???????????????????????? | | ???# ??????????????????????? | | ???## ??????????????????????? | | ???## ??????????????????????? | | ???## #?????????????????????? | | ????? ###????????????????????? | | ????# ###????###?????????????? | | ????## ##????###?????????????? | | ????## ####?? ?????????????? | | ????## #### ????????????????? | | ???### #;## ?????????????????? | | ??#### ?????????????????? | | ??### ???????????????????? | | ??## s[##???????????????????? | | ??## =%###???????????????????? | | ??### s%####??????????????????? | | ???###s@ ####?????????????????? | | ???#### %%####????????????????? | | ??##### ####???????????????? | | ?##### ###???????????????? | | ?### ##???????????????? | | ?## ##???????????????? | | ?## ##???????????????? | | ?## ###???????????????? | | ?## ####???????????????? | | ?## #####????????????????? | | ?## #####?????????????????? | | ?## ###???????????????????? | | ?### ###????????????????????? | | ?##########????????????????????? | | ??########?????????????????????? | | ???????????????????????????????? | | ???????????????????????????????? | | ???????????????????????????????? | | ???????????????????????????????? | | ???????????????????????????????? | | ???????????????????????????????? | | ???????????????????????????????? | | ???????????????????????????????? | | ???????????????????????????????? | | ???????????????????????????????? | +----------------------------------------------------+ Best States ------------- Heat Dissipation 25 Energy Generation 15 Energy Capacity 250 Matter Stores 300 Matter Capacity 300 Sight Range 16 Terrain Scan Density 10 Evasion (%) 55 Item Schematics ----------------- Flight Unit | -10/Materials | Hacked Robot Schematics ------------------ None Fabricated ------------ Nothing Alien Tech Used ----------------- None Achievements -------------- None Challenges ------------ None Game ------ Seed FluxSwordBox Manual? 0 Play Time 00:23:08 Cumulative 113.7 hours Start 2023.03.10 @ 10:40:35 End 2023.03.10 @ 11:15:44 Sessions 1 Manual Loads 0 Difficulty Rogue Special Mode None Game No. 77 Rogue 77 Adventurer 0 Explorer 0 Win Type - Total 2 Types 2/0/0/0/0/0/0/0/0 Lore% 56 Gallery% 59 Achievement% 55 Wizard Run 0 Options --------- ASCII 1 Keyboard 1 Movement Vi Keybinds 0 Fullscreen 2 Font 18/SmallcapsGlow Map View 76x50 Tactical HUD 1 Map Filters NONE Filters NONE Steam 1 RUN: d4b7af48-768a-4c41-81d0-8500e5d540dc